bitfinex-derivatives/quotes_BTCF0:USTF0_20240917
["timestamp","ask_amount","ask_price","bid_price","bid_amount"]
[1726607367115,0.08532636,60342.0,60341.0,0.087171]
[1726607367613,0.08632636,60342.0,60341.0,0.088171]
[1726607368703,0.11832806,60342.0,60341.0,0.088171]
[1726607369509,0.15889783,60342.0,60341.0,0.00533]
[1726607369710,0.30759307,60342.0,60341.0,0.00533]
[1726607369907,0.40019307,60342.0,60341.0,0.00533]
[1726607370109,0.45104452,60342.0,60341.0,0.00533]
[1726607372121,0.40019307,60342.0,60341.0,0.00533]
[1726607373213,0.84383307,60342.0,60341.0,0.00533]
[1726607373422,0.082848,60336.0,60328.0,0.082858]
[1726607373607,0.082857,60330.0,60329.0,0.082857]
[1726607373807,0.443657,60330.0,60329.0,0.082857]
[1726607375418,0.444657,60330.0,60329.0,0.083857]
[1726607375913,0.45434894,60330.0,60329.0,0.083857]
[1726607376118,0.45534894,60330.0,60329.0,0.084857]
[1726607378612,0.45534894,60330.0,60329.0,0.002]
[1726607379721,0.45534894,60330.0,60319.0,0.00248649]
[1726607379722,0.96977194,60330.0,60321.0,0.082868]
[1726607379931,0.1,60322.0,60321.0,0.082868]
[1726607380320,0.082871,60319.0,60318.0,0.443672]
[1726607380821,0.082874,60317.0,60315.0,0.00248692]
[1726607381024,0.1,60318.0,60315.0,0.00248692]
[1726607381217,0.082876,60316.0,60315.0,0.00248692]
[1726607383821,0.083876,60316.0,60315.0,0.00248692]
[1726607394336,0.444676,60316.0,60315.0,0.00248692]
[1726607395228,0.083876,60316.0,60315.0,0.00248692]
[1726607395529,0.444676,60316.0,60315.0,0.00248692]
[1726607397432,0.3618,60316.0,60304.0,0.00248668]
[1726607397733,0.08288,60313.0,60308.0,0.04955323]
[1726607398040,0.082887,60308.0,60306.0,0.04955323]
[1726607398337,0.082891,60305.0,60304.0,0.00248668]
[1726607398531,0.082891,60305.0,60304.0,0.01648668]
[1726607399432,0.081891,60305.0,60304.0,0.00248668]
[1726607400324,0.081891,60305.0,60294.0,0.0099445]
[1726607400325,0.082892,60304.0,60302.0,0.082894]
[1726607400529,0.3608,60303.0,60302.0,0.04942089]
[1726607400928,0.077895,60302.0,60295.0,0.15248743]
[1726607401322,0.075895,60302.0,60295.0,0.15248743]
[1726607401733,0.069895,60302.0,60301.0,0.04940719]
[1726607402329,0.3608,60303.0,60301.0,0.04940719]
[1726607402631,0.001,60302.0,60301.0,0.13229659]
[1726607402839,0.082878,60314.0,60302.0,0.49748]
[1726607403036,0.0925457,60314.0,60311.0,0.082882]
[1726607403425,0.0925457,60314.0,60311.0,1.582882]
[1726607403630,0.082878,60314.0,60311.0,1.582882]
[1726607404237,0.00548742,60312.0,60311.0,1.583882]
[1726607404831,0.00948742,60312.0,60311.0,1.583882]
[1726607415948,0.00948742,60312.0,60311.0,1.683882]
[1726607417336,0.00948742,60312.0,60311.0,1.766764]
[1726607417544,0.00948742,60312.0,60311.0,1.857264]
[1726607418251,0.08534993,60326.0,60324.0,0.082863]
[1726607418444,0.08534993,60326.0,60311.0,2.871782]
[1726607418445,0.03201282,60325.0,60322.0,0.1]
[1726607418645,0.082863,60325.0,60324.0,0.082863]
[1726607418954,0.15545841,60325.0,60324.0,0.082863]
[1726607419653,0.15545841,60325.0,60324.0,0.083863]
[1726607419956,0.15745841,60325.0,60324.0,0.083863]
[1726607420348,0.07459541,60325.0,60324.0,0.084863]
[1726607420957,0.07459541,60325.0,60324.0,0.083863]
[1726607421150,0.08759541,60325.0,60324.0,0.084863]
[1726607421955,0.08659541,60325.0,60324.0,0.084863]
[1726607422158,0.16945841,60325.0,60324.0,0.084863]
[1726607423447,0.096863,60325.0,60324.0,0.084863]
[1726607423645,0.16945832,60325.0,60324.0,0.084863]
[1726607426660,0.08659532,60325.0,60324.0,0.084863]
[1726607426968,0.014,60325.0,60324.0,0.084863]
[1726607428164,0.096863,60325.0,60324.0,0.084863]
[1726607431651,0.12887522,60325.0,60324.0,0.084863]
[1726607438066,0.04601222,60325.0,60324.0,0.084863]
[1726607438261,0.04601177,60325.0,60324.0,0.084863]
[1726607439168,0.12887477,60325.0,60324.0,0.084863]
[1726607441867,0.16945661,60325.0,60324.0,0.084863]
[1726607443566,0.08659361,60325.0,60324.0,0.084863]
[1726607443765,0.08659361,60325.0,60324.0,0.184863]
[1726607445766,0.08659361,60325.0,60324.0,0.545663]
[1726607448266,0.08658939,60325.0,60324.0,0.545663]
[1726607448875,0.014,60325.0,60324.0,0.545663]
[1726607450579,0.014,60325.0,60324.0,0.628528]
[1726607450876,0.014,60325.0,60324.0,0.545663]
[1726607451178,0.014,60325.0,60324.0,0.628528]
[1726607451474,0.014,60325.0,60324.0,0.545663]
[1726607452268,0.014,60325.0,60324.0,0.628528]
[1726607452574,0.082832,60348.0,60324.0,1.56012]
[1726607452575,0.00248636,60342.0,60324.0,1.56012]
[1726607452877,0.0320067,60340.0,60339.0,0.082844]
[1726607453081,0.443641,60341.0,60340.0,0.082843]
[1726607453265,0.47564381,60341.0,60340.0,0.082843]
[1726607453462,0.443641,60341.0,60340.0,0.082843]
[1726607453771,0.455641,60341.0,60340.0,0.082843]
[1726607456065,0.451641,60341.0,60340.0,0.083843]
[1726607456271,0.090841,60341.0,60340.0,0.083843]
[1726607456476,0.090841,60341.0,60340.0,0.084843]
[1726607456875,0.16341517,60341.0,60340.0,0.084843]
[1726607460182,0.21426854,60341.0,60340.0,0.084843]
[1726607461983,0.21426874,60341.0,60340.0,0.002]
[1726607463582,0.29710974,60341.0,60340.0,0.002]
[1726607463884,0.20568495,60341.0,60340.0,0.002]
[1726607468084,0.28852595,60341.0,60340.0,0.002]
[1726607468987,0.38852595,60341.0,60340.0,0.002]
[1726607469190,0.20568495,60341.0,60340.0,0.002]
[1726607471089,0.20568599,60341.0,60340.0,0.002]
[1726607471979,0.29711374,60341.0,60340.0,0.002]
[1726607472784,0.65791374,60341.0,60340.0,0.002]
[1726607474383,0.082858,60330.0,60329.0,0.082857]
[1726607474578,0.11486199,60330.0,60329.0,0.082857]
[1726607474773,0.20628974,60330.0,60329.0,0.082857]
[1726607474987,0.37166141,60330.0,60329.0,0.082857]
[1726607475688,0.37166141,60330.0,60329.0,0.084857]
[1726607475992,0.20630155,60330.0,60329.0,0.084857]
[1726607476286,0.37171212,60330.0,60329.0,0.084857]
[1726607476688,0.20630155,60330.0,60329.0,0.084857]
[1726607476988,0.20830155,60330.0,60329.0,0.084857]
[1726607477385,0.20730155,60330.0,60329.0,0.085857]
[1726607478085,0.20830155,60330.0,60329.0,0.085857]
[1726607478293,0.21530155,60330.0,60329.0,0.084857]
[1726607478991,0.084858,60330.0,60329.0,0.083857]
[1726607479196,0.092858,60330.0,60329.0,0.084857]
[1726607482498,0.10280696,60330.0,60329.0,0.084857]
[1726607484291,0.10280696,60330.0,60329.0,0.002]
[1726607485386,0.18566596,60330.0,60329.0,0.002]
[1726607485705,0.082869,60321.0,60320.0,0.08535673]
[1726607486997,0.15546254,60321.0,60320.0,0.08535673]
[1726607487596,0.15546254,60321.0,60320.0,0.08635673]
[1726607487796,0.15746254,60321.0,60320.0,0.08635673]
[1726607490600,0.1574619,60321.0,60320.0,0.08635673]
[1726607491698,0.15746208,60321.0,60320.0,0.08635673]
[1726607493998,0.084869,60321.0,60320.0,0.08635673]
[1726607494200,0.09481249,60321.0,60320.0,0.08635673]
[1726607495507,0.09481249,60321.0,60320.0,0.00348673]
[1726607496013,0.15131249,60321.0,60320.0,0.00348673]
[1726607497409,0.002,60321.0,60320.0,0.18635673]
[1726607499309,0.084869,60321.0,60320.0,0.18635673]
[1726607499700,0.002,60321.0,60320.0,0.18635673]
[1726607504117,0.002,60321.0,60320.0,1.36658673]
[1726607504302,0.002,60321.0,60320.0,1.42748673]
[1726607504506,0.06858648,60334.0,60325.0,0.082863]
[1726607504507,0.00970474,60332.0,60325.0,0.082863]
[1726607504718,0.0320082,60331.0,60327.0,0.1]
[1726607504920,0.082854,60333.0,60327.0,0.1]
[1726607505110,0.03200801,60332.0,60331.0,0.1]
[1726607505305,0.082854,60333.0,60332.0,0.082854]
[1726607505515,0.11486201,60333.0,60332.0,0.082854]
[1726607507415,0.11586201,60333.0,60332.0,0.083854]
[1726607507719,0.11586098,60333.0,60332.0,0.083854]
[1726607507909,0.12586098,60333.0,60332.0,0.084854]
[1726607508420,0.011,60333.0,60332.0,0.084854]
[1726607509016,0.04300704,60333.0,60332.0,0.084854]
[1726607509520,0.13444352,60333.0,60332.0,0.084854]
[1726607510218,0.13444328,60333.0,60332.0,0.084854]
[1726607514621,0.21729528,60333.0,60332.0,0.084854]
[1726607515523,0.21729725,60333.0,60332.0,0.084854]
[1726607516521,0.21729726,60333.0,60332.0,0.084854]
[1726607517028,0.12585949,60333.0,60332.0,0.084854]
[1726607520342,0.12585949,60333.0,60332.0,0.002]
[1726607520533,0.20871149,60333.0,60332.0,0.002]
[1726607520725,0.20871149,60333.0,60322.0,0.082866]
[1726607520726,0.082858,60329.0,60322.0,0.082866]
[1726607520923,0.13198481,60328.0,60322.0,0.082866]
[1726607521127,0.07258481,60327.0,60322.0,0.082866]
[1726607522229,0.082866,60323.0,60322.0,0.082866]
[1726607522427,0.11487349,60323.0,60322.0,0.082866]
[1726607522822,0.11487349,60323.0,60320.0,0.00248673]
[1726607522823,0.082867,60322.0,60320.0,0.00248673]
[1726607523041,0.11487449,60322.0,60320.0,0.08535673]
[1726607523228,0.11487449,60322.0,60321.0,0.443669]
[1726607524641,0.21487449,60322.0,60321.0,0.3608]
[1726607525234,0.165738,60321.0,60320.0,0.00248673]
[1726607525536,0.165738,60321.0,60313.0,0.3608]
[1726607525537,0.082878,60314.0,60313.0,0.3608]
[1726607525837,0.21488549,60314.0,60313.0,0.3608]
[1726607526538,0.11388549,60314.0,60313.0,0.3608]
[1726607527138,0.11388549,60314.0,60313.0,0.3658]
[1726607527434,0.11488549,60314.0,60313.0,0.3748]
[1726607529030,0.082878,60314.0,60313.0,0.3748]
[1726607531126,0.15548301,60314.0,60313.0,0.3748]
[1726607531438,0.15548301,60314.0,60313.0,0.45768]
[1726607532033,0.1652837,60314.0,60313.0,0.45768]
[1726607533135,0.0834057,60314.0,60313.0,0.45768]
[1726607533341,0.07360501,60314.0,60313.0,0.55768]
[1726607533532,0.03301649,60314.0,60313.0,0.55768]
[1726607533837,0.03301161,60314.0,60313.0,0.55768]
[1726607534036,0.001,60314.0,60313.0,0.55768]
[1726607534441,0.001,60314.0,60313.0,0.56730446]
[1726607535023,0.03301147,60314.0,60313.0,2.06730446]
[1726607535930,0.001,60314.0,60313.0,2.06730446]
[1726607538234,0.03301193,60314.0,60313.0,2.06730446]
[1726607539131,0.001,60314.0,60313.0,2.06730446]
[1726607542844,0.001,60314.0,60313.0,1.70650446]
[1726607543233,0.001,60314.0,60313.0,2.06730446]
[1726607543428,0.001,60314.0,60313.0,1.96730446]
[1726607543733,0.001,60314.0,60313.0,0.45768]
[1726607544838,0.083878,60314.0,60313.0,0.45768]
[1726607546332,0.15647508,60314.0,60313.0,0.45768]
[1726607546937,0.15647508,60314.0,60313.0,0.09688]
[1726607547142,0.15647508,60314.0,60313.0,0.45768]
[1726607548154,0.07359708,60314.0,60313.0,0.45768]
[1726607549845,0.07359708,60314.0,60313.0,0.09688]
[1726607550036,0.07359708,60314.0,60313.0,0.45768]
[1726607550445,0.03301299,60314.0,60313.0,0.62344]
[1726607550948,0.03301299,60314.0,60313.0,2.12344]
[1726607551739,0.00248673,60320.0,60319.0,0.082871]
[1726607551943,0.04306859,60320.0,60319.0,0.543671]
[1726607553146,0.04306859,60320.0,60319.0,0.545671]
[1726607553344,0.04506859,60320.0,60319.0,0.545671]
[1726607554149,0.00448673,60320.0,60319.0,0.545671]
[1726607555742,0.00448673,60320.0,60319.0,0.55525303]
[1726607558053,0.00448673,60320.0,60319.0,0.45525303]
[1726607558851,0.08735673,60320.0,60319.0,0.45525303]
[1726607561358,0.12793764,60320.0,60319.0,0.45525303]
[1726607561757,0.15994813,60320.0,60319.0,0.45525303]
[1726607562261,0.15994813,60320.0,60319.0,0.445671]
[1726607566559,0.07707813,60320.0,60319.0,0.445671]
[1726607566960,0.07707847,60320.0,60319.0,0.445671]
[1726607568754,0.12794402,60320.0,60319.0,0.445671]
[1726607569063,0.07707847,60320.0,60319.0,0.445671]
[1726607569367,0.00448673,60320.0,60319.0,0.445671]
[1726607571266,0.08735673,60320.0,60319.0,0.445671]
[1726607575472,0.19975239,60320.0,60319.0,0.3628]
[1726607576170,0.29120669,60320.0,60319.0,0.3628]
[1726607576368,0.44029654,60320.0,60319.0,0.3628]
[1726607576770,0.29120669,60320.0,60319.0,0.3628]
[1726607576975,0.45670661,60320.0,60319.0,0.3628]
[1726607578076,0.29120669,60320.0,60319.0,0.3628]
[1726607578274,0.29120669,60320.0,60319.0,0.002]
[1726607579874,0.29120669,60320.0,60317.0,0.3608]
[1726607579875,0.082873,60318.0,60317.0,0.3608]
[1726607580175,0.21488539,60318.0,60317.0,0.3608]
[1726607580378,0.30633969,60318.0,60317.0,0.3608]
[1726607580769,0.30634058,60318.0,60317.0,0.3608]
[1726607581871,0.89630993,60318.0,60317.0,0.3608]
[1726607582178,0.082889,60306.0,60305.0,0.36328736]
[1726607582375,0.33191635,60306.0,60305.0,0.36328736]
[1726607582586,0.8038366,60306.0,60305.0,0.36328736]
[1726607582791,0.7998366,60306.0,60305.0,0.36328736]
[1726607582986,0.7998366,60306.0,60305.0,0.3608]
[1726607583786,1.27007773,60306.0,60296.0,0.00248772]
[1726607583992,0.1,60297.0,60296.0,0.00248772]
[1726607584278,0.182902,60297.0,60296.0,0.00248772]
[1726607584482,1.363364,60297.0,60296.0,0.00248772]
[1726607584689,1.363364,60297.0,60290.0,0.3608]
[1726607584993,1.363364,60297.0,60283.0,0.3608]
[1726607584994,0.069917,60286.0,60283.0,0.3608]
[1726607585293,0.169917,60286.0,60283.0,0.3608]
[1726607585596,0.08292,60284.0,60283.0,0.3608]
[1726607585895,0.07192,60284.0,60283.0,0.3608]
[1726607586887,0.07192,60284.0,60283.0,0.3678]
[1726607587688,0.06392,60284.0,60283.0,0.3678]
[1726607588686,0.06592,60284.0,60283.0,0.3628]
[1726607589896,0.07549668,60284.0,60283.0,0.3628]
[1726607592000,0.07549668,60284.0,60283.0,0.002]
[1726607594102,0.07549668,60284.0,60283.0,0.084921]
[1726607594403,0.01157668,60284.0,60283.0,0.084921]
[1726607594594,0.002,60284.0,60283.0,0.084921]
[1726607595496,0.08539317,60295.0,60283.0,0.084921]
[1726607595801,0.08539317,60295.0,60284.0,0.0583]
[1726607595802,0.082907,60293.0,60284.0,0.0583]
[1726607595990,0.00248817,60295.0,60284.0,0.0583]
[1726607595991,0.00248817,60295.0,60294.0,0.082906]
[1726607596792,0.00348817,60295.0,60294.0,0.082906]
[1726607597705,0.00448817,60295.0,60294.0,0.082906]
[1726607598300,0.00348817,60295.0,60294.0,0.085906]
[1726607599297,0.001,60295.0,60294.0,0.085906]
[1726607602597,0.001,60295.0,60294.0,0.168812]
[1726607603295,0.00248728,60307.0,60306.0,0.082889]
[1726607604002,0.3608,60315.0,60314.0,0.082878]
[1726607604209,0.00248709,60319.0,60314.0,0.15]
[1726607604414,0.00248709,60319.0,60318.0,0.082873]
[1726607605097,0.03450081,60319.0,60318.0,0.082873]
[1726607605501,0.04850081,60319.0,60318.0,0.083873]
[1726607605704,0.06250081,60319.0,60318.0,0.083873]
[1726607606301,0.03048709,60319.0,60318.0,0.083873]
[1726607606495,0.028,60319.0,60318.0,0.083873]
[1726607606699,0.03789023,60319.0,60318.0,0.083873]
[1726607609014,0.028,60319.0,60318.0,0.233873]
[1726607610018,0.028,60319.0,60318.0,0.083873]
[1726607610204,0.028,60319.0,60318.0,0.001]
[1726607610205,0.110871,60319.0,60318.0,0.001]
[1726607610814,0.102871,60319.0,60318.0,0.001]
[1726607611115,0.082875,60317.0,60314.0,0.082878]
[1726607612314,0.105875,60317.0,60315.0,0.082877]
[1726607614007,0.092875,60317.0,60316.0,0.082876]
[1726607614207,0.106875,60317.0,60316.0,0.082876]
[1726607614515,0.107875,60317.0,60316.0,0.082876]
[1726607615216,0.108875,60317.0,60316.0,0.083876]
[1726607619225,0.108875,60317.0,60316.0,0.444676]
[1726607621412,0.18147144,60317.0,60316.0,0.444676]
[1726607622112,0.18147144,60317.0,60316.0,0.083876]
[1726607622313,0.18147144,60317.0,60316.0,0.444676]
[1726607623622,0.18147143,60317.0,60316.0,0.444676]
[1726607623807,0.18147143,60317.0,60316.0,0.083876]
[1726607624213,0.18147143,60317.0,60316.0,0.444676]
[1726607624717,0.23234038,60317.0,60316.0,0.444676]
[1726607625118,0.18147143,60317.0,60316.0,0.444676]
[1726607626325,0.09859643,60317.0,60316.0,0.594676]
[1726607626510,0.09859643,60317.0,60316.0,0.677552]
[1726607626917,0.09859643,60317.0,60316.0,2.177552]
[1726607627116,0.09859643,60317.0,60316.0,0.444676]
[1726607629320,0.026,60317.0,60316.0,0.444676]
[1726607631223,0.026,60317.0,60316.0,0.083876]
[1726607631432,0.026,60317.0,60316.0,0.444676]
[1726607632627,0.0580117,60317.0,60316.0,0.444676]
[1726607633428,0.09859415,60317.0,60316.0,0.444676]
[1726607636324,0.1494615,60317.0,60316.0,0.444676]
[1726607640332,0.2323355,60317.0,60316.0,0.444676]
[1726607643025,0.2323355,60317.0,60316.0,0.083876]
[1726607643232,0.2323355,60317.0,60316.0,0.444676]
[1726607644527,0.18146815,60317.0,60316.0,0.444676]
[1726607645334,0.1408857,60317.0,60316.0,0.444676]
[1726607647523,0.2237597,60317.0,60316.0,0.3618]
[1726607647729,0.38152227,60317.0,60316.0,0.3618]
[1726607647930,0.46440156,60317.0,60316.0,0.3618]
[1726607648130,0.31520994,60317.0,60316.0,0.3618]
[1726607648340,0.84177841,60317.0,60316.0,0.001]
[1726607649140,0.67600994,60317.0,60316.0,0.001]
[1726607650041,0.59313594,60317.0,60316.0,0.001]
[1726607650237,0.62514235,60317.0,60316.0,0.001]
[1726607650640,0.082885,60309.0,60308.0,0.002487]
[1726607650938,0.28924823,60309.0,60308.0,0.002487]
[1726607651139,0.082895,60302.0,60301.0,0.00084]
[1726607651436,0.082899,60299.0,60298.0,0.3608]
[1726607651642,0.25495495,60299.0,60298.0,0.4437]
[1726607651846,0.12348906,60299.0,60298.0,0.4437]
[1726607652539,0.07160964,60299.0,60298.0,0.4437]
[1726607652743,0.03101756,60299.0,60298.0,0.4437]
[1726607653340,0.03101756,60299.0,60298.0,0.4487]
[1726607653541,0.19648441,60299.0,60298.0,0.4487]
[1726607654049,0.19748441,60299.0,60298.0,0.4487]
[1726607654345,0.28895591,60299.0,60298.0,0.4487]
[1726607654543,0.12348906,60299.0,60298.0,0.4487]
[1726607658546,0.18078568,60299.0,60298.0,0.4487]
[1726607658747,0.27225718,60299.0,60298.0,0.4487]
[1726607659043,0.12348906,60299.0,60298.0,0.4487]
[1726607659446,0.001,60299.0,60298.0,0.4487]
[1726607660647,0.001,60299.0,60298.0,0.5987]
[1726607662042,0.001,60299.0,60298.0,0.4487]
[1726607663945,0.001,60299.0,60298.0,0.0879]
[1726607672250,0.001,60299.0,60298.0,0.2379]
[1726607672553,0.001,60299.0,60298.0,0.2863]
[1726607673248,0.001,60299.0,60298.0,0.3692]
[1726607673455,0.001,60299.0,60298.0,0.2863]
[1726607674357,0.001,60299.0,60298.0,1.46672]
[1726607674557,0.001,60299.0,60298.0,0.9692]
[1726607674558,0.03301878,60299.0,60298.0,0.9692]
[1726607674758,0.03301878,60299.0,60298.0,0.3692]
[1726607674965,0.03301878,60299.0,60298.0,1.8692]
[1726607675256,0.03301878,60299.0,60298.0,0.2863]
[1726607675658,0.03301878,60299.0,60298.0,0.3692]
[1726607676258,0.03301878,60299.0,60298.0,0.2863]
[1726607676855,0.03301878,60299.0,60298.0,0.3692]
[1726607678054,0.03301878,60299.0,60298.0,0.3192]
[1726607679062,0.03301878,60299.0,60298.0,0.2363]
[1726607679263,0.03301878,60299.0,60298.0,0.3192]
[1726607679757,0.03301878,60299.0,60298.0,0.2363]
[1726607680156,0.03301878,60299.0,60298.0,0.3192]
[1726607680464,0.03301851,60299.0,60298.0,0.3192]
[1726607681660,0.001,60299.0,60298.0,0.3192]
[1726607682658,0.001,60299.0,60298.0,0.2363]
[1726607683371,0.001,60299.0,60298.0,0.3192]
[1726607685367,0.001,60299.0,60298.0,0.2363]
[1726607687864,0.001,60299.0,60298.0,0.3192]
[1726607688169,0.001,60299.0,60298.0,0.2363]
[1726607689765,0.03301857,60299.0,60298.0,0.2363]
[1726607690071,0.18209687,60299.0,60298.0,0.2363]
[1726607690268,0.27356628,60299.0,60298.0,0.2363]
[1726607690471,0.12448798,60299.0,60298.0,0.2363]
[1726607691165,0.07360972,60299.0,60298.0,0.2363]
[1726607692771,0.08389682,60299.0,60298.0,0.5971]
[1726607692966,0.12448797,60299.0,60298.0,0.5971]
[1726607694465,0.12448767,60299.0,60298.0,0.5971]
[1726607694665,0.12448767,60299.0,60298.0,0.2363]
[1726607694865,0.12448767,60299.0,60298.0,0.5971]
[1726607696470,0.27356726,60299.0,60298.0,0.5971]
[1726607696779,0.001,60299.0,60298.0,0.64649035]
[1726607699579,0.001,60299.0,60298.0,0.5971]
[1726607700779,0.001,60299.0,60298.0,0.68]
[1726607702378,0.001,60299.0,60298.0,0.5971]
[1726607702579,0.001,60299.0,60298.0,0.4971]
[1726607702776,0.001,60299.0,60298.0,0.4487]
[1726607708776,0.001,60299.0,60298.0,0.5316]
[1726607708978,0.001,60299.0,60298.0,0.5812]
[1726607709279,0.001,60299.0,60298.0,0.6298]
[1726607709485,0.001,60299.0,60298.0,0.69560527]
[1726607709883,0.0468,60309.0,60308.0,0.082887]
[1726607710068,0.0495,60317.0,60308.0,0.804487]
[1726607710069,0.00248726,60313.0,60308.0,0.804487]
[1726607710268,0.00248726,60313.0,60312.0,0.182881]
[1726607711666,0.07508183,60313.0,60312.0,0.182881]
[1726607711966,0.08708183,60313.0,60312.0,0.183881]
[1726607713579,0.09408183,60313.0,60312.0,0.183881]
[1726607717879,0.09408183,60313.0,60312.0,0.19369269]
[1726607719273,0.09159457,60313.0,60312.0,0.19369269]
[1726607719678,0.019,60313.0,60312.0,0.19369269]
[1726607722185,0.019,60313.0,60312.0,0.55449269]
[1726607726994,0.019,60313.0,60312.0,0.45449269]
[1726607727290,0.019,60313.0,60312.0,0.444681]
[1726607727876,0.09159668,60313.0,60312.0,0.444681]
[1726607728688,0.05101251,60313.0,60312.0,0.444681]
[1726607729890,0.09159607,60313.0,60312.0,0.444681]
[1726607730288,0.0915961,60313.0,60312.0,0.444681]
[1726607731982,0.0915961,60313.0,60312.0,0.527562]
[1726607732494,0.05101251,60313.0,60312.0,0.527562]
[1726607734887,0.019,60313.0,60312.0,0.527562]
[1726607740495,0.00248693,60317.0,60316.0,0.165752]
[1726607740796,0.3208,60328.0,60325.0,0.082863]
[1726607740797,0.00248658,60326.0,60325.0,0.082863]
[1726607741003,0.00248658,60326.0,60325.0,0.543663]
[1726607742091,0.00248658,60326.0,60325.0,0.544663]
[1726607742092,0.01648658,60326.0,60325.0,0.544663]
[1726607742289,0.01648658,60326.0,60325.0,0.444663]
[1726607742691,0.01548658,60326.0,60325.0,0.444663]
[1726607743099,0.02348658,60326.0,60325.0,0.444663]
[1726607743798,0.02348658,60326.0,60325.0,0.4546499]
[1726607747698,0.09606918,60326.0,60325.0,0.4546499]
[1726607749206,0.05549319,60326.0,60325.0,0.4546499]
[1726607749414,0.05549289,60326.0,60325.0,0.4546499]
[1726607750307,0.02348658,60326.0,60325.0,0.4546499]
[1726607761022,0.021,60326.0,60325.0,0.4546499]
[1726607765222,0.05300703,60326.0,60325.0,0.4546499]
[1726607765421,0.021,60326.0,60325.0,0.4546499]
[1726607765621,0.09358355,60326.0,60325.0,0.4546499]
[1726607767226,0.021,60326.0,60325.0,0.4546499]
[1726607767425,0.14444309,60326.0,60325.0,0.4546499]
[1726607768319,0.29352268,60326.0,60325.0,0.4546499]
[1726607769029,0.14444309,60326.0,60325.0,0.4546499]
[1726607769533,0.30990994,60326.0,60325.0,0.4546499]
[1726607770428,0.14444309,60326.0,60325.0,0.4546499]
[1726607770937,0.14444309,60326.0,60325.0,0.3717869]
[1726607771121,0.082867,60322.0,60321.0,0.00248658]
[1726607771431,0.12344309,60322.0,60321.0,0.08535558]
[1726607771631,0.07258333,60322.0,60321.0,0.08535558]
[1726607772233,0.04100693,60322.0,60321.0,0.08635558]
[1726607773225,0.009,60322.0,60321.0,0.08635558]
[1726607773838,0.009,60322.0,60321.0,0.18635558]
[1726607778445,0.009,60322.0,60321.0,0.08635558]
[1726607778645,0.091867,60322.0,60321.0,0.08635558]
[1726607778842,0.091867,60322.0,60321.0,0.00348658]
[1726607779439,0.091867,60322.0,60321.0,0.08635558]
[1726607780241,0.2153257,60322.0,60321.0,0.08635558]
[1726607780843,0.38084814,60322.0,60321.0,0.08635558]
[1726607781450,0.29797348,60322.0,60321.0,0.08635558]
[1726607781651,0.29797211,60322.0,60321.0,0.08635558]
[1726607782250,0.13245733,60322.0,60321.0,0.08635558]
[1726607782751,0.31532433,60322.0,60321.0,0.001]
[1726607782957,0.48083911,60322.0,60321.0,0.001]
[1726607783456,0.08287,60320.0,60319.0,0.3608]
[1726607783649,0.13373563,60320.0,60319.0,0.3608]
[1726607783849,0.20632733,60320.0,60319.0,0.3608]
[1726607784556,0.1554617,60320.0,60319.0,0.3608]
[1726607784758,0.1564617,60320.0,60319.0,0.3608]
[1726607784944,0.1614617,60320.0,60319.0,0.3608]
[1726607787262,0.08887,60320.0,60319.0,0.3608]
[1726607788956,0.08887,60320.0,60319.0,0.443671]
[1726607789349,0.08887,60320.0,60319.0,0.3608]
[1726607790653,0.082876,60316.0,60315.0,0.082876]
[1726607791757,0.082876,60316.0,60315.0,0.443676]
[1726607791958,0.082876,60316.0,60315.0,0.446676]
[1726607793174,0.083876,60316.0,60315.0,0.446676]
[1726607794376,0.083876,60316.0,60315.0,0.3638]
[1726607794574,0.183876,60316.0,60315.0,0.3638]
[1726607794770,0.183876,60316.0,60308.0,0.00248703]
[1726607794771,0.082885,60309.0,60308.0,0.00248703]
[1726607794980,0.182885,60309.0,60308.0,0.00248703]
[1726607795279,0.30636792,60309.0,60308.0,0.00248703]
[1726607795479,1.48669292,60309.0,60308.0,0.00248703]
[1726607795682,1.59554133,60309.0,60308.0,0.00248703]
[1726607796080,1.62756567,60309.0,60308.0,0.00248703]
[1726607796385,1.59654841,60309.0,60308.0,0.00948703]
[1726607796583,1.5371,60309.0,60308.0,0.00948703]
[1726607796776,1.5361,60309.0,60308.0,0.00248703]
[1726607796976,0.082892,60304.0,60303.0,0.3608]
[1726607797182,0.25550291,60304.0,60303.0,0.3608]
[1726607797581,0.25250291,60304.0,60303.0,0.3608]
[1726607797880,0.15250291,60304.0,60303.0,0.3608]
[1726607798476,0.15250291,60304.0,60303.0,0.3618]
[1726607798686,0.30250291,60304.0,60303.0,0.3618]
[1726607798882,0.30250291,60304.0,60297.0,0.443701]
[1726607798883,0.0829,60298.0,60297.0,0.3608]
[1726607799184,0.082909,60292.0,60287.0,0.082914]
[1726607799378,0.08291,60291.0,60287.0,0.082914]
[1726607799582,0.07261091,60290.0,60287.0,0.082914]
[1726607799780,0.08291,60291.0,60286.0,0.00996541]
[1726607799781,0.082915,60287.0,60286.0,0.00996541]
[1726607800084,0.08292,60284.0,60283.0,0.00248776]
[1726607800287,0.082923,60282.0,60279.0,0.00985617]
[1726607800584,0.05861091,60281.0,60278.0,0.082928]
[1726607801086,0.05861091,60281.0,60279.0,0.082926]
[1726607801285,0.05861091,60281.0,60280.0,0.082925]
[1726607801581,0.04060681,60281.0,60280.0,0.082925]
[1726607801782,0.3608,60283.0,60281.0,0.082923]
[1726607802582,0.082929,60278.0,60273.0,0.082934]
[1726607803086,0.1443,60282.0,60270.0,0.15]
[1726607803487,0.3608,60277.0,60275.0,0.082931]
[1726607805389,0.3618,60277.0,60275.0,0.082931]
[1726607806090,0.3628,60277.0,60275.0,0.082931]
[1726607808190,0.3628,60277.0,60270.0,0.15]
[1726607808191,0.44573,60277.0,60270.0,0.15]
[1726607808490,0.44573,60277.0,60272.0,0.082936]
[1726607809191,0.44573,60277.0,60273.0,0.082935]
[1726607809492,0.44573,60277.0,60274.0,0.0457]
[1726607810696,0.44373,60277.0,60274.0,0.0457]